Cogmind - Beta 15 @@@ ROGUE MODE // 2025.05.06 @ 20:29:08 Player: celerysam Result: Destroyed by OS-1WH(R) with Subdweller Laser Performance ------------- Evolutions (0) 0 Regions Visited (2) 400 Robots Destroyed (14) 70 Value Destroyed (470) 470 Prototype IDs (11) 220 Alien Tech Used (0) 0 Bonus (0) 0 TOTAL SCORE: 1160 Bonus ------- None Cogmind --------- Core Integrity 0/250 Matter 175/300 Energy 100/100 System Corruption 0% Temperature Cool (6) Movement Rolling (110) Location -10/Subcaves Parts ------- > --- POWER (1) -------- Subdweller Power Source > --- PROPULSION (2) --- Subdweller Monowheel > --- UTILITY (2) ------ Small Storage Unit > --- WEAPON (2) ------- (None) > --- INVENTORY (8) ---- Subdweller Monowheel Flightbrick Structural Scanner Ripper Peak State ------------ > --- POWER ------------ Ion Engine > --- PROPULSION ------- Compact Wheel Compact Wheel > --- UTILITY ---------- Small Storage Unit Makeshift Light Armor Plating > --- WEAPON ----------- Barrage Gun Ripper > --- INVENTORY -------- Light Treads Light Treads Flightbrick Structural Scanner Grenade Launcher [Rating: 19] Favorites ----------- Power Subdweller Power Source Engine Subdweller Power Source Propulsion Aluminum Leg Treads Light Treads Leg Aluminum Leg Wheel Subdweller Monowheel Utility Small Storage Unit Device Structural Scanner Storage Small Storage Unit Protection Makeshift Light Armor Plating Weapon Battle Rifle Energy Gun Small Laser Ballistic Gun Battle Rifle Launcher Grenade Launcher Slashing Weapon Ripper Build | -11 -10 -10 ------- Run | Yrd Mat Sub Slots Evolved . | . . . Power . | . . . Propulsion . | . . . Utility . | . . . Weapon . | . . . Parts Attached 29 | 6 3 20 Power 5 | 1 . 4 Engine 5 | 1 . 4 Core . | . . . Reactor . | . . . Propulsion 10 | 2 . 8 Treads 2 | . . 2 Leg 2 | 2 . . Wheel 6 | . . 6 Hover . | . . . Flight . | . . . Utility 5 | 1 1 3 Device 3 | . 1 2 Storage 1 | 1 . . Processor . | . . . Hackware . | . . . Protection 1 | . . 1 Artifact . | . . . Weapon 9 | 2 2 5 Energy Gun 4 | 2 1 1 Energy Cannon . | . . . Ballistic Gun 3 | . 1 2 Ballistic Cannon . | . . . Launcher 1 | . . 1 Special Weapon . | . . . Impact Weapon . | . . . Slashing Weapon 1 | . . 1 Piercing Weapon . | . . . Special Melee Weapon . | . . . Unidentified Prototypes . | . . . Parts Lost 14 | . . 14 Power 3 | . . 3 Propulsion 5 | . . 5 Utility 2 | . . 2 Weapon 4 | . . 4 Highest Loss Streak 3 | . . 3 To Critical Strikes . | . . . Average Backups 5 | 4 7 5 Power . | 1 1 . Propulsion 2 | 2 4 2 Utility . | . . . Weapon 1 | . 1 1 Tool/Special . | . . . Unused Backups 4 | . . 4 Power 2 | . . 2 Propulsion 1 | . . 1 Utility . | . . . Weapon 1 | . . 1 Tool/Special . | . . . Average Slot Usage (%) 90 | . 94 90 Engine 13 | . 14 13 Treads 5 | . . 5 Leg 10 | . 28 8 Wheel 12 | . . 12 Device 4 | . 9 4 Storage 14 | . 14 14 Protection 5 | . . 5 Energy Gun 6 | . 20 5 Ballistic Gun 12 | . 8 12 Launcher 2 | . . 2 Slashing Weapon 3 | . . 3 Peak Build Rating 19 | 6 7 19 Average Rating 12 | 3 6 13 On Entrance 4 | . 6 7 Naked Turns . | . . . Heaviest Build 20 | 11 12 20 Greatest Support 40 | 20 20 40 Greatest Overweight (x) 4 | . . 4 Average Overweight (x) . | . . . Largest Inventory Capacity 8 | 8 8 8 Average Capacity 7 | 6 8 8 Most Carried 8 | 7 8 8 Average Carried 7 | 5 7 7 Final Capacity 8 | 8 8 8 Final Carried 8 | 6 8 7 Class Distribution -------------------- 94% | Mutant 5% | Scavenger-Mutant Dominant Class ---------------- Mutant | -10/Materials Mutant | -10/Subcaves Resources | -11 -10 -10 ----------- Run | Yrd Mat Sub Matter Collected 734 | 254 . 480 Remotely . | . . . Salvage Created 412 | . . 412 Parts 26 | . . 26 Haulers Intercepted . | . . . Recyclers Shooed . | . . . Parts Field Recycled . | . . . Retrieved Matter . | . . . Parts Self-Destructed 10 | . . 10 Prevented . | . . . Kills | -11 -10 -10 ------- Run | Yrd Mat Sub Combat Hostiles Destroyed 14 | . . 14 Guns 8 | . . 8 AOE 6 | . . 6 Classes Destroyed 2 | . . 2 Swarmer 3 | . . 3 Subdweller 11 | . . 11 Best Kill Streak 3 | . . 3 Combat Bots Only 3 | . . 3 Max Kills in Single Turn 1 | . . 1 Gunslinging . | . . . Exploded 1 | . . 1 Melee . | . . . Uniques/NPCs Destroyed . | . . . Combat | -11 -10 -10 -------- Run | Yrd Mat Sub Hostile Shots Fired 104 | . . 104 Missed 27 | . . 27 Hits 77 | . . 77 Projectile 77 | . . 77 AOE 5 | . . 5 Damage Taken 1889 | . . 1889 Core 261 | . . 261 Absorbed by Shields . | . . . Core Remaining (%) 100 | 100 . . Volleys Fired 66 | . . 66 Largest 2 | . . 2 Hottest 85 | . . 85 Shots Fired 93 | . . 93 Gun 83 | . . 83 Cannon . | . . . Launcher 10 | . . 10 Special . | . . . Kinetic 66 | . . 66 Thermal 17 | . . 17 Explosive 10 | . . 10 Electromagnetic . | . . . Robot Hit Streak 16 | . . 16 Robot Miss Streak 3 | . . 3 Penetration Max . | . . . Secondary Targets . | . . . Shots Hit Robots 70 | . . 70 Core Hits 28 | . . 28 Critical Kills . | . . . Critical Parts Destroyed 1 | . . 1 Critical Strikes 3 | . . 3 Destroy 2 | . . 2 Sever 1 | . . 1 Melee Attacks 28 | . . 28 Impact . | . . . Slashing 28 | . . 28 Piercing . | . . . Sneak Attacks . | . . . Combat Hostiles . | . . . Follow-up Attacks . | . . . Damage Inflicted 1592 | . . 1592 Guns 968 | . . 968 Cannons . | . . . Explosions 475 | . . 475 Melee 149 | . . 149 Ramming . | . . . Kinetic 696 | . . 696 Thermal 272 | . . 272 Explosive 475 | . . 475 Electromagnetic . | . . . Impact . | . . . Slashing 149 | . . 149 Piercing . | . . . Highest Corruption . | . . . Average Corruption . | . . . Corruption Purged . | . . . Corruption Blocked . | . . . Overload Shots . | . . . Overflow Damage 32 | . . 32 Projectiles . | . . . Explosions 32 | . . 32 Melee . | . . . Knockbacks . | . . . Impact . | . . . Kinetic . | . . . Secondary . | . . . Self-Inflicted Damage 38 | . . 38 Shots 3 | . . 3 Rammed . | . . . Targets Rammed . | . . . Kicked . | . . . Crushed . | . . . Highest Temperature 11 | . . 11 Average Temperature 5 | . . 5 Received Heat Transfer 366 | . . 366 Siege Activations . | . . . Martial Activations . | . . . Shielding Activations . | . . . Robots Disrupted . | . . . Combat Hostiles . | . . . Robots Corrupted . | . . . Combat Hostiles . | . . . Parts Fried . | . . . Impact Corruptions . | . . . Robots Melted . | . . . Combat Hostiles . | . . . Parts Melted 1 | . . 1 Heat Transferred 375 | . . 375 Parts Sabotaged . | . . . Parts Stolen . | . . . Parts Stripped . | . . . Power Chain Reactions . | . . . Alert | -11 -10 -10 ------- Run | Yrd Mat Sub Maximum Alert Level . | . . . Low Security (%) 100 | 100 100 . Level 1 . | . . . Level 2 . | . . . Level 3 . | . . . Level 4 . | . . . Level 5 . | . . . High Security . | . . . Max Security . | . . . Peak Influence . | . . . Initial . | . . . Average . | . . . Influence Increases 105 | . . 105 Destroy 0b10 Robot/C 60 | . . 60 Lose Combat Pursuer 45 | . . 45 Influence Decreases 105 | . . 105 Time Decay 95 | . . 95 Lost Part 10 | . . 10 Squads Dispatched 1 | . 1 . Investigation . | . . . Extermination . | . . . Reinforcement 1 | . 1 . Assault . | . . . Garrison . | . . . Intercept . | . . . Searches Triggered . | . . . Construction Impeded . | . . . Haulers Reinforced . | . . . Active Scanning Responses . | . . . Cargo Convoy Interrupts . | . . . Stealth | -11 -10 -10 --------- Run | Yrd Mat Sub Distress Signals . | . . . Communications Jammed . | . . . Distress Signals . | . . . Times Spotted 25 | . 1 24 Peak Tracking Total 3 | . 1 3 Tactical Retreats 7 | . . 7 Traps | -11 -10 -10 ------- Run | Yrd Mat Sub Traps Triggered 3 | . . 3 Indirectly . | . . . Trap Hack Attempts . | . . . Triggered . | . . . Disarmed . | . . . Reprogrammed . | . . . Reused . | . . . Traps Extracted . | . . . Installed . | . . . Triggered . | . . . Machines | -11 -10 -10 ---------- Run | Yrd Mat Sub Machines Disabled 1 | . . 1 Max in Single Turn 1 | . . 1 Machines Repaired . | . . . Machines Dismantled . | . . . Machines Sabotaged . | . . . Overloaded Fab Kills . | . . . Hacking | -11 -10 -10 --------- Run | Yrd Mat Sub Machines Accessed 2 | . . 2 Terminals . | . . . Fabricators . | . . . Repair Stations . | . . . Recycling Units . | . . . Scanalyzers . | . . . Garrison Access . | . . . Total Hacks 4 | . . 4 Successful 4 | . . 4 Failed . | . . . Catastrophic . | . . . Database Lockouts . | . . . Manual . | . . . Terminals . | . . . Fabricators . | . . . Repair Stations . | . . . Recycling Units . | . . . Scanalyzers . | . . . Garrison Access . | . . . Terminal Hacks 4 | . . 4 Record 3 | . . 3 Proto ID Catalog 1 | . . 1 Fabricator Hacks . | . . . Repair Station Hacks . | . . . Recycling Unit Hacks . | . . . Scanalyzer . | . . . Garrison Access Hacks . | . . . Unauthorized Hacks . | . . . Terminals . | . . . Fabricators . | . . . Repair Stations . | . . . Recycling Units . | . . . Scanalyzers . | . . . Garrison Access . | . . . Data Cores Recovered . | . . . Used . | . . . Hacking Detections . | . . . Full Trace Events . | . . . Feedback Events . | . . . Feedback Blocked . | . . . Robot Schematics Acquired . | . . . Robots Built . | . . . Authchips . | . . . Time . | . . . Total Robot Build Rating . | . . . Part Schematics Acquired . | . . . Parts Built . | . . . Authchips . | . . . Time . | . . . Total Part Build Rating . | . . . Parts Repaired . | . . . Time . | . . . Parts Recycled . | . . . Recycled Matter . | . . . Retrieved Matter . | . . . Retrieved Components . | . . . Parts Scanalyzed . | . . . Part Schematics Acquired . | . . . Parts Damaged . | . . . Bothacking | -11 -10 -10 ------------ Run | Yrd Mat Sub Used RIF Installer . | . . . Robots Hacked . | . . . Non-combat . | . . . Combat . | . . . Robot Hacks Applied . | . . . Relay Couplers Released . | . . . Fabnet Peak Effective % . | . . . Robots Rewired . | . . . Allies Hacked . | . . . Hacks Repelled . | . . . Allies | -11 -10 -10 -------- Run | Yrd Mat Sub Total Allies . | . . . Largest Group . | . . . Highest-Rated Group . | . . . Highest-Rated Ally . | . . . Total Orders . | . . . Ally Attacks . | . . . Total Damage . | . . . Kills . | . . . Allies Corrupted . | . . . Allies Melted . | . . . Intel | -11 -10 -10 ------- Run | Yrd Mat Sub Active Infowar (turns) 670 | . 90 580 Optics 117 | . . 117 Structural 553 | . 90 463 Robot Analysis Total . | . . . Derelict Logs Recovered 1 | . . 1 Drone Launches . | . . . Drone Recoveries . | . . . Exploration | -11 -10 -10 ------------- Run | Yrd Mat Sub Turns Passed 2112 | 75 131 1906 Spaces Moved 1490 | 61 83 1346 Core 20 | 19 . 1 Treads 189 | . . 189 Legs 576 | 42 83 451 Wheels 705 | . . 705 Hover . | . . . Flight . | . . . Fastest Speed 50 | 50 120 100 Average Speed 118 | 98 120 118 Slowest Speed 250 | 120 120 250 Overloaded Moves . | . . . Propulsion Burnouts . | . . . Robots Hopped . | . . . Potential Cave-ins . | . . . Cave-ins Triggered . | . . . Exploration Rate (%) 28 | 3 15 67 Regions Visited 2 Branch Regions 1 Pre-discovered Areas . | . . . Known Exits Taken . | . . . Unknown Exits Taken 2 | 1 1 . Scrap Searched 3 | . . 3 Spaces Dug 7 | . . 7 Terrain Destroyed 55 | . . 55 Melee . | . . . Projectile 1 | . . 1 AOE 54 | . . 54 Terrain Rammed . | . . . Walls Destroyed . | . . . Machines Disabled . | . . . Actions | -11 -10 -10 --------- Run | Yrd Mat Sub Total 1701 | 73 114 1514 Wait 41 | . 24 17 Move 1488 | 60 82 1346 Hop . | . . . Pick Up 22 | 7 4 11 Fast Attach 10 | 5 . 5 Attach 10 | 1 1 8 Detach 2 | . . 2 Swap 21 | . 2 19 Drop 13 | . 1 12 Fire 66 | . . 66 Melee 28 | . . 28 Ram . | . . . Kick . | . . . Crush . | . . . Escape Stasis . | . . . Rewire . | . . . Trap . | . . . Miscellaneous . | . . . Route ------- -11/Scrapyard -10/Materials -10/Subcaves History --------- Turn | Location | Event 14 | -11/Scrapyard | Discovered new exit (range 16) 76 | -11/Scrapyard | Entered Materials 201 | -10/Materials | Discovered new exit (range 6) 207 | -10/Materials | Entered Subcaves 303 | -10/Subcaves | Build established: Mutant 812 | -10/Subcaves | Visited 4L-MR0's lab 836 | -10/Subcaves | Found Flightbrick 933 | -10/Subcaves | Visited Clippyterm 936 | -10/Subcaves | Learned Research security intel 1197 | -10/Subcaves | Ambushed by Subdweller buried in earth 1241 | -10/Subcaves | Learned Materials stockpile data 1626 | -10/Subcaves | Lost 3 parts (2n1u) 1652 | -10/Subcaves | Ambushed by Subdweller buried in earth 1659 | -10/Subcaves | Core integrity fell below 50% 2084 | -10/Subcaves | Core integrity fell below 20% 2113 | -10/Subcaves | Destroyed by OS-1WH(R) with Subdweller Laser Last Messages --------------- 01680_ Dropped Sub. Monowheel. 01682_ Dropped Sub. Power Source. 01682_ Acquired Sub. Monowheel. 01683_ Subatomizers dissect the Disposable Heat Sink. 01793_ Sub. Optics shoots sparks and powers down. 01799_ Dropped Broken Sub. Optics. 01836_ Subatomizers dissect the Sub. Optics. 01845_ 0Y-X8M(u) builds Twisted Machinery. 01909_ Sub. Power Source shoots sparks and powers down. 01919_ Dropped Broken Sub. Power Source. 02021_ Battle Rifle destroyed. 02045_ Sub. Laser destroyed. 02049_ Sub. Power Source shoots sparks and powers down. 02086_ Acquired 27 matter. 02087_ Acquired 11 matter. 02095_ Sub. Monowheel destroyed. Map ----- +----------------------------------------------------+ | ?????????????????????????????????????????????????? | | ?????????????????????????????????????????????????? | | ?????????????????????????????????????????????????? | | ?????????????????????????????????????????????????? | | ?????????????????????????????????????????????????? | | ?????????????????????????????????????????????????? | | ?????????????????????????????????????????????????? | | ?????????????????????????????????????????????????? | | ?????????????????????????????????????????????????? | | ?????????????????????????????????????????????????? | | ?????????????????????????????????????????????????? | | ????????????????????????###??????????????????????? | | ???????????????????????? #??????????????????????? | | ??????????????????????## ###?????????????????????? | | ????###################" " ###???????????????????? | | ##### ## # ## ## ## ###?????????????????? | | ## ##????????????????? | | ##???????????????? | | ## # ## ## ## R ##??????????????? | | ?## ############# #??????????????? | | ??## #???????????## #?????????????? | | ???# ##????????????# ## ????????????? | | ???###????????????## ##???? ?????????????? | | ?????????????????## #???????????????????????? | | ?????????????????# ##??????????????????????? | | ???????????????# @#??????????????????????? | | ??????????????# #?????????????????????? | | ?????????????# #### #????????????????????? | | ?????????????# #???### #???????????????????? | | ?????????????# ??????## ??????????????????? | | ?????????????## ????????## ?????????????????? | | ??????????????##??????????## # ????????????????? | | ????????????????????????????### #??????????????? | | ???????????????????????????????? #??????????????? | | ????????????????????????????????? ??????????????? | | ?????????????????????????????????? ?????????????? | | ??????????????????????????????????? ????????????? | | ?????????????????????????????????????????????????? | | ?????????????????????????????????????????????????? | | ?????????????????????????????????????????????????? | | ?????????????????????????????????????????????????? | | ?????????????????????????????????????????????????? | | ?????????????????????????????????????????????????? | | ?????????????????????????????????????????????????? | | ?????????????????????????????????????????????????? | | ?????????????????????????????????????????????????? | | ?????????????????????????????????????????????????? | | ?????????????????????????????????????????????????? | | ?????????????????????????????????????????????????? | | ?????????????????????????????????????????????????? | +----------------------------------------------------+ Best States ------------- Heat Dissipation 25 Energy Generation 15 Energy Capacity 250 Matter Stores 300 Matter Capacity 300 Sight Range 21 Terrain Scan Density 10 Armor Coverage 100 Evasion (%) 55 Recoil Reduction 2 Item Schematics ----------------- None Robot Schematics ------------------ None Fabricated ------------ Nothing Repaired ---------- Nothing Alien Tech Used ----------------- None Achievements -------------- None Challenges ------------ None Game ------ Seed WeldingSystemMicrothruster Manual? 0 Play Time 00:18:38 Cumulative 234.6 hours Start 2025.05.06 @ 20:12:55 End 2025.05.06 @ 20:29:08 Sessions 1 Manual Loads 0 Difficulty Rogue Special Mode None Game No. 350 Rogue 350 Adventurer 0 Explorer 0 Win Type - Total 1 Types 1/0/0/0/0/0/0/0/0/0 Lore% 42 Gallery% 59 Achievement% 43 Wizard Run 0 Options --------- Layout 1 ASCII 0 Keyboard 0 Movement Mouse Keybinds 0 Fullscreen 2 Font 24/Smallcaps Map View 50x35 Zoom Use 0% Tactical HUD 1 Map Filters NONE Filters NONE Steam 1 RUN: 726c5f2b-3742-474f-852f-23460c53e977